[Event "*** Titled Tuesday Blitz"]
[Site "Chess.com"]
[Date "2021.04.27"]
[Round "1"]
[White "annacramling"]
[Black "Lenyas66"]
[Result "1/2-1/2"]
[WhiteElo "2085"]
[BlackElo "2493"]
[TimeControl "180+1"]
[EndTime "10:08:58 PDT"]
[Termination "Game drawn by repetition"]

1. d4 {[%clk 0:02:59.9]} 1... Nf6 {[%clk 0:02:58.2]} 2. c4 {[%clk 0:02:59.1]}
2... d6 {[%clk 0:02:58.4]} 3. Nc3 {[%clk 0:02:59.2]} 3... e5 {[%clk 0:02:58.3]}
4. dxe5 {[%clk 0:02:54.2]} 4... dxe5 {[%clk 0:02:58.3]} 5. Qxd8+ {[%clk
0:02:54.8]} 5... Kxd8 {[%clk 0:02:58.5]} 6. Bg5 {[%clk 0:02:53.3]} 6... Be6
{[%clk 0:02:58]} 7. O-O-O+ {[%clk 0:02:52.5]} 7... Nd7 {[%clk 0:02:58]} 8. e3
{[%clk 0:02:52.2]} 8... c6 {[%clk 0:02:56.8]} 9. Ne4 {[%clk 0:02:46]} 9... Kc7
{[%clk 0:02:54.3]} 10. Bxf6 {[%clk 0:02:33.9]} 10... gxf6 {[%clk 0:02:48.6]} 11.
Nf3 {[%clk 0:02:32.9]} 11... Be7 {[%clk 0:02:45.7]} 12. Be2 {[%clk 0:02:29.4]}
12... Rhg8 {[%clk 0:02:35.1]} 13. Rhg1 {[%clk 0:02:21.3]} 13... f5 {[%clk
0:02:34.2]} 14. Nc3 {[%clk 0:02:17.6]} 14... Bf6 {[%clk 0:02:31.5]} 15. h3
{[%clk 0:02:06.8]} 15... Nc5 {[%clk 0:02:21.6]} 16. Nd2 {[%clk 0:01:35.9]} 16...
a5 {[%clk 0:02:16.3]} 17. g4 {[%clk 0:01:33.9]} 17... e4 {[%clk 0:02:12.9]} 18.
gxf5 {[%clk 0:01:23.5]} 18... Bxf5 {[%clk 0:02:07.2]} 19. f3 {[%clk 0:01:03.9]}
19... exf3 {[%clk 0:01:59.1]} 20. Nxf3 {[%clk 0:01:04.8]} 20... Bxh3 {[%clk
0:01:55.5]} 21. Nd4 {[%clk 0:00:58.6]} 21... Bg5 {[%clk 0:01:26.6]} 22. Rg3
{[%clk 0:00:56.6]} 22... Bd7 {[%clk 0:01:26.1]} 23. Rf1 {[%clk 0:00:42.4]} 23...
Rae8 {[%clk 0:01:21.3]} 24. Kd2 {[%clk 0:00:38.1]} 24... f6 {[%clk 0:01:14.1]}
25. Nf5 {[%clk 0:00:29.1]} 25... Re5 {[%clk 0:01:12]} 26. Nh6 {[%clk 0:00:23.5]}
26... Rge8 {[%clk 0:01:09.7]} 27. Ng4 {[%clk 0:00:14.3]} 27... Bxg4 {[%clk
0:01:03.9]} 28. Bxg4 {[%clk 0:00:15.2]} 28... Rxe3 {[%clk 0:01:03.6]} 29. Rxe3
{[%clk 0:00:14.3]} 29... Rxe3 {[%clk 0:01:03.6]} 30. Kc2 {[%clk 0:00:14]} 30...
Rg3 {[%clk 0:01:01.8]} 31. Bf5 {[%clk 0:00:13.2]} 31... h5 {[%clk 0:01:01.4]}
32. a3 {[%clk 0:00:11]} 32... h4 {[%clk 0:00:55.9]} 33. b4 {[%clk 0:00:11]}
33... axb4 {[%clk 0:00:55.3]} 34. axb4 {[%clk 0:00:11.9]} 34... Rg2+ {[%clk
0:00:55]} 35. Kb1 {[%clk 0:00:11.5]} 35... Nb3 {[%clk 0:00:54.5]} 36. Ne4 {[%clk
0:00:08.2]} 36... Re2 {[%clk 0:00:45.8]} 37. Rd1 {[%clk 0:00:05.5]} 37... Nd2+
{[%clk 0:00:39.4]} 38. Nxd2 {[%clk 0:00:04.4]} 38... Bxd2 {[%clk 0:00:39.2]} 39.
b5 {[%clk 0:00:03.1]} 39... Bc3 {[%clk 0:00:34.7]} 40. Rd7+ {[%clk 0:00:01.3]}
40... Kb6 {[%clk 0:00:34.5]} 41. bxc6 {[%clk 0:00:01.7]} 41... bxc6 {[%clk
0:00:34.3]} 42. Rd6 {[%clk 0:00:02.2]} 42... Kc5 {[%clk 0:00:31.9]} 43. Rd8
{[%clk 0:00:02.5]} 43... Kxc4 {[%clk 0:00:31.2]} 44. Rc8 {[%clk 0:00:02.7]}
44... Rb2+ {[%clk 0:00:29.6]} 45. Kc1 {[%clk 0:00:02.7]} 45... c5 {[%clk
0:00:25.9]} 46. Rh8 {[%clk 0:00:02.6]} 46... Rh2 {[%clk 0:00:20.3]} 47. Re8
{[%clk 0:00:02.9]} 47... Be5 {[%clk 0:00:19.9]} 48. Rd8 {[%clk 0:00:02.5]} 48...
h3 {[%clk 0:00:17.9]} 49. Rh8 {[%clk 0:00:02.8]} 49... Rh1+ {[%clk 0:00:17.4]}
50. Kd2 {[%clk 0:00:03.3]} 50... h2 {[%clk 0:00:17.5]} 51. Bd3+ {[%clk
0:00:03.7]} 51... Kb4 {[%clk 0:00:14.8]} 52. Be4 {[%clk 0:00:04.2]} 52... c4
{[%clk 0:00:14.8]} 53. Bxh1 {[%clk 0:00:03.5]} 53... c3+ {[%clk 0:00:14.5]} 54.
Kc2 {[%clk 0:00:02.7]} 54... Kc4 {[%clk 0:00:14.6]} 55. Be4 {[%clk 0:00:03]}
55... Kd4 {[%clk 0:00:14.8]} 56. Bf5 {[%clk 0:00:03.2]} 56... Ke3 {[%clk
0:00:14.9]} 57. Rh3+ {[%clk 0:00:02.6]} 57... Kf2 {[%clk 0:00:14]} 58. Be4
{[%clk 0:00:03.1]} 58... Kg1 {[%clk 0:00:11.6]} 59. Rh8 {[%clk 0:00:03.8]} 59...
f5 {[%clk 0:00:11.6]} 60. Bxf5 {[%clk 0:00:04.1]} 60... h1=Q {[%clk 0:00:10.9]}
61. Rxh1+ {[%clk 0:00:03.6]} 61... Kxh1 {[%clk 0:00:11]} 62. Be4+ {[%clk
0:00:03.6]} 62... Kg1 {[%clk 0:00:10.9]} 63. Bd3 {[%clk 0:00:03.7]} 63... Kf2
{[%clk 0:00:10.9]} 64. Bf5 {[%clk 0:00:03.9]} 64... Ke3 {[%clk 0:00:11.1]} 65.
Bg6 {[%clk 0:00:04]} 65... Kd4 {[%clk 0:00:11.2]} 66. Bh7 {[%clk 0:00:04.3]}
66... Bf4 {[%clk 0:00:09.5]} 67. Bg6 {[%clk 0:00:05.2]} 67... Bd2 {[%clk
0:00:09.6]} 68. Bh7 {[%clk 0:00:05.8]} 68... Kc4 {[%clk 0:00:08.8]} 69. Bg6
{[%clk 0:00:06.7]} 69... Kb4 {[%clk 0:00:08.9]} 70. Bh7 {[%clk 0:00:07.6]} 70...
Kc4 {[%clk 0:00:08.8]} 71. Bg6 {[%clk 0:00:08]} 71... Kd4 {[%clk 0:00:09]} 72.
Bh7 {[%clk 0:00:08.6]} 72... Ke3 {[%clk 0:00:06.8]} 73. Bg6 {[%clk 0:00:09.1]}
73... Ke2 {[%clk 0:00:06.3]} 74. Bh7 {[%clk 0:00:09.8]} 74... Ke1 {[%clk
0:00:06.6]} 75. Bg6 {[%clk 0:00:10.4]} 75... Kf2 {[%clk 0:00:06.9]} 76. Bh7
{[%clk 0:00:10.8]} 76... Kg3 {[%clk 0:00:06.9]} 77. Bg6 {[%clk 0:00:11.2]} 77...
Kf4 {[%clk 0:00:06.7]} 78. Bh7 {[%clk 0:00:11.5]} 78... Ke5 {[%clk 0:00:06.8]}
79. Bd3 {[%clk 0:00:11.6]} 79... Kd4 {[%clk 0:00:05.6]} 80. Bh7 {[%clk
0:00:12.5]} 1/2-1/2

[Event "*** Titled Tuesday Blitz"]
[Site "Chess.com"]
[Date "2021.04.27"]
[Round "1"]
[White "PlotnikovPavel"]
[Black "Sanan_Sjugirov"]
[Result "0-1"]
[WhiteElo "2465"]
[BlackElo "2976"]
[TimeControl "180+1"]
[EndTime "10:09:04 PDT"]
[Termination "Sanan_Sjugirov won by checkmate"]

1. e4 {[%clk 0:03:00.9]} 1... c6 {[%clk 0:02:56.3]} 2. d4 {[%clk 0:03:00.8]}
2... d5 {[%clk 0:02:56.1]} 3. exd5 {[%clk 0:03:01]} 3... cxd5 {[%clk 0:02:55.9]}
4. Bd3 {[%clk 0:03:01.5]} 4... Nc6 {[%clk 0:02:54.7]} 5. c3 {[%clk 0:03:02]}
5... Nf6 {[%clk 0:02:54.2]} 6. Bf4 {[%clk 0:03:02.2]} 6... g6 {[%clk 0:02:52.2]}
7. Nf3 {[%clk 0:03:00.7]} 7... Ne4 {[%clk 0:02:48.1]} 8. Nbd2 {[%clk 0:02:54.7]}
8... Bf5 {[%clk 0:02:45.9]} 9. Bxe4 {[%clk 0:02:38.4]} 9... dxe4 {[%clk
0:02:40.7]} 10. Ng5 {[%clk 0:02:24.8]} 10... Qd5 {[%clk 0:01:55.6]} 11. Qb3
{[%clk 0:02:13.1]} 11... Qxb3 {[%clk 0:01:55.2]} 12. axb3 {[%clk 0:02:13.3]}
12... Bh6 {[%clk 0:01:55.6]} 13. Ne6 {[%clk 0:02:03.5]} 13... Bxf4 {[%clk
0:01:47.3]} 14. Nxf4 {[%clk 0:02:04.4]} 14... e5 {[%clk 0:01:47.4]} 15. dxe5
{[%clk 0:01:56.7]} 15... Nxe5 {[%clk 0:01:47.8]} 16. O-O {[%clk 0:01:56.7]}
16... Rd8 {[%clk 0:01:06]} 17. Nc4 {[%clk 0:01:41.4]} 17... Nxc4 {[%clk
0:01:05.4]} 18. bxc4 {[%clk 0:01:41.4]} 18... a6 {[%clk 0:01:02.9]} 19. Nd5
{[%clk 0:01:36.5]} 19... Be6 {[%clk 0:00:52.5]} 20. Nf6+ {[%clk 0:01:26.8]}
20... Kf8 {[%clk 0:00:52.3]} 21. Nxe4 {[%clk 0:01:27.4]} 21... Bxc4 {[%clk
0:00:52.3]} 22. Rfd1 {[%clk 0:01:25.5]} 22... Rxd1+ {[%clk 0:00:35.9]} 23. Rxd1
{[%clk 0:01:26.4]} 23... Ke7 {[%clk 0:00:36.5]} 24. Nc5 {[%clk 0:01:19.8]} 24...
b6 {[%clk 0:00:18.5]} 25. Rd7+ {[%clk 0:01:13]} 25... Kf6 {[%clk 0:00:14.7]} 26.
Rd6+ {[%clk 0:01:08.3]} 26... Ke5 {[%clk 0:00:14]} 27. Rxb6 {[%clk 0:01:08.7]}
27... Rd8 {[%clk 0:00:13.9]} 28. h3 {[%clk 0:00:48]} 28... a5 {[%clk 0:00:14.1]}
29. Nb7 {[%clk 0:00:36.6]} 29... Rd1+ {[%clk 0:00:12.9]} 30. Kh2 {[%clk
0:00:36.2]} 30... a4 {[%clk 0:00:06.9]} 31. Na5 {[%clk 0:00:35.4]} 31... Be6
{[%clk 0:00:05.2]} 32. Rb4 {[%clk 0:00:34.7]} 32... Ra1 {[%clk 0:00:04.6]} 33.
f4+ {[%clk 0:00:30.5]} 33... Kd6 {[%clk 0:00:04.4]} 34. Nc4+ {[%clk 0:00:27.6]}
34... Kc5 {[%clk 0:00:03]} 35. Na3 {[%clk 0:00:27.6]} 35... Bb3 {[%clk
0:00:01.9]} 36. Rb5+ {[%clk 0:00:27.3]} 36... Kc6 {[%clk 0:00:02.2]} 37. Rb4
{[%clk 0:00:26.8]} 37... Ra2 {[%clk 0:00:02.5]} 38. Nc4 {[%clk 0:00:22.2]} 38...
Kc5 {[%clk 0:00:02.9]} 39. Ne5 {[%clk 0:00:19.9]} 39... f6 {[%clk 0:00:03]} 40.
Nd3+ {[%clk 0:00:19.9]} 40... Kc6 {[%clk 0:00:03]} 41. Kg3 {[%clk 0:00:16.9]}
41... Ra1 {[%clk 0:00:02.9]} 42. Kf2 {[%clk 0:00:16.5]} 42... Kd6 {[%clk
0:00:03]} 43. Ke3 {[%clk 0:00:16.7]} 43... Kc7 {[%clk 0:00:02.2]} 44. Kd4 {[%clk
0:00:16.9]} 44... Rd1 {[%clk 0:00:02.1]} 45. Ke3 {[%clk 0:00:17]} 45... Rg1
{[%clk 0:00:02]} 46. Kf2 {[%clk 0:00:16.1]} 46... Rb1 {[%clk 0:00:02.1]} 47. Ke3
{[%clk 0:00:13.5]} 47... f5 {[%clk 0:00:01.6]} 48. Kd4 {[%clk 0:00:13.2]} 48...
Rg1 {[%clk 0:00:01.7]} 49. Nc5 {[%clk 0:00:11.7]} 49... Bc2 {[%clk 0:00:01.7]}
50. Nxa4 {[%clk 0:00:11.4]} 50... Rxg2 {[%clk 0:00:02.2]} 51. Rc4+ {[%clk
0:00:11.4]} 51... Kd6 {[%clk 0:00:01.9]} 52. Nc5 {[%clk 0:00:09.2]} 52... Rg3
{[%clk 0:00:02]} 53. Rb4 {[%clk 0:00:04.8]} 53... Rxh3 {[%clk 0:00:01.8]} 54.
Rb6+ {[%clk 0:00:04.7]} 54... Kc7 {[%clk 0:00:02.3]} 55. Rb7+ {[%clk 0:00:05.1]}
55... Kc6 {[%clk 0:00:02.8]} 56. b4 {[%clk 0:00:04.7]} 56... Ba4 {[%clk
0:00:01.8]} 57. Nxa4 {[%clk 0:00:04.5]} 57... Kxb7 {[%clk 0:00:01.7]} 58. Nc5+
{[%clk 0:00:04.3]} 58... Kc6 {[%clk 0:00:02.2]} 59. Ne6 {[%clk 0:00:04.8]} 59...
Rf3 {[%clk 0:00:02.1]} 60. c4 {[%clk 0:00:03.4]} 60... Rf1 {[%clk 0:00:02]} 61.
b5+ {[%clk 0:00:03.5]} 61... Kb6 {[%clk 0:00:02.6]} 62. Kd5 {[%clk 0:00:03.5]}
62... h5 {[%clk 0:00:02.6]} 63. Nd4 {[%clk 0:00:04]} 63... Rc1 {[%clk
0:00:02.4]} 64. c5+ {[%clk 0:00:04.6]} 64... Rxc5+ {[%clk 0:00:02.4]} 65. Ke6
{[%clk 0:00:04.8]} 65... Rxb5 {[%clk 0:00:02.8]} 66. Nxb5 {[%clk 0:00:04.6]}
66... Kxb5 {[%clk 0:00:03.7]} 67. Kf6 {[%clk 0:00:05.4]} 67... h4 {[%clk
0:00:04.1]} 68. Kxg6 {[%clk 0:00:06.3]} 68... h3 {[%clk 0:00:05]} 69. Kxf5
{[%clk 0:00:07.2]} 69... h2 {[%clk 0:00:05.9]} 70. Kg4 {[%clk 0:00:08.1]} 70...
h1=Q {[%clk 0:00:06.8]} 71. f5 {[%clk 0:00:09]} 71... Qe4+ {[%clk 0:00:06.8]}
72. Kg5 {[%clk 0:00:09]} 72... Qe5 {[%clk 0:00:07.2]} 73. Kg6 {[%clk 0:00:09.2]}
73... Qg3+ {[%clk 0:00:07.4]} 74. Kf6 {[%clk 0:00:09]} 74... Kc6 {[%clk
0:00:06.8]} 75. Ke7 {[%clk 0:00:09.1]} 75... Qd6+ {[%clk 0:00:06.9]} 76. Ke8
{[%clk 0:00:09.5]} 76... Kd5 {[%clk 0:00:06.8]} 77. f6 {[%clk 0:00:09.2]} 77...
Ke6 {[%clk 0:00:06.9]} 78. f7 {[%clk 0:00:09.2]} 78... Qd7+ {[%clk 0:00:07.2]}
79. Kf8 {[%clk 0:00:08.4]} 79... Qxf7# {[%clk 0:00:08.1]} 0-1

[Event "*** Titled Tuesday Blitz"]
[Site "Chess.com"]
[Date "2021.04.27"]
[Round "1"]
[White "Ibrayevnb"]
[Black "Msb2"]
[Result "1/2-1/2"]
[WhiteElo "2463"]
[BlackElo "2889"]
[TimeControl "180+1"]
[EndTime "10:09:06 PDT"]
[Termination "Game drawn by repetition"]

1. d4 {[%clk 0:03:00]} 1... Nf6 {[%clk 0:02:57.2]} 2. c4 {[%clk 0:02:59.6]} 2...
e6 {[%clk 0:02:57.3]} 3. Nf3 {[%clk 0:02:59.4]} 3... d5 {[%clk 0:02:56.1]} 4.
Nc3 {[%clk 0:02:59.1]} 4... Bb4 {[%clk 0:02:54.8]} 5. cxd5 {[%clk 0:02:59]} 5...
exd5 {[%clk 0:02:55.7]} 6. Bg5 {[%clk 0:02:58.6]} 6... h6 {[%clk 0:02:53.8]} 7.
Bh4 {[%clk 0:02:58.2]} 7... Bf5 {[%clk 0:02:54]} 8. Qb3 {[%clk 0:02:57.4]} 8...
Nc6 {[%clk 0:02:49.1]} 9. e3 {[%clk 0:02:56.8]} 9... O-O {[%clk 0:02:40.8]} 10.
Bxf6 {[%clk 0:02:55.6]} 10... Qxf6 {[%clk 0:02:38.7]} 11. Be2 {[%clk 0:02:56.1]}
11... Qd6 {[%clk 0:02:32.6]} 12. O-O {[%clk 0:02:55.2]} 12... Bxc3 {[%clk
0:02:18.3]} 13. Qxc3 {[%clk 0:02:54.9]} 13... Ne7 {[%clk 0:02:17.6]} 14. Rfc1
{[%clk 0:02:54.6]} 14... c6 {[%clk 0:02:17.6]} 15. b4 {[%clk 0:02:54.6]} 15...
Rfc8 {[%clk 0:02:15]} 16. a4 {[%clk 0:02:52.5]} 16... a6 {[%clk 0:02:09.9]} 17.
Qc5 {[%clk 0:02:45.6]} 17... Qd8 {[%clk 0:02:07.9]} 18. Qc3 {[%clk 0:02:22.2]}
18... Bg4 {[%clk 0:02:02.8]} 19. h3 {[%clk 0:02:21.1]} 19... Bxf3 {[%clk
0:02:02.2]} 20. Bxf3 {[%clk 0:02:21]} 20... Nf5 {[%clk 0:02:03.1]} 21. g3 {[%clk
0:02:16.5]} 21... Nd6 {[%clk 0:02:02.9]} 22. Be2 {[%clk 0:02:09.9]} 22... g6
{[%clk 0:01:56.9]} 23. Bd3 {[%clk 0:02:09.6]} 23... Kg7 {[%clk 0:01:56.4]} 24.
h4 {[%clk 0:02:09.5]} 24... h5 {[%clk 0:01:56.4]} 25. Kg2 {[%clk 0:02:07.6]}
25... Qe7 {[%clk 0:01:53.6]} 26. Qc5 {[%clk 0:02:07.1]} 26... Qd8 {[%clk
0:01:44.4]} 27. Ra2 {[%clk 0:02:04.9]} 27... a5 {[%clk 0:01:24.7]} 28. Rb1
{[%clk 0:01:52.8]} 28... axb4 {[%clk 0:01:22.6]} 29. Rxb4 {[%clk 0:01:51.5]}
29... Ra5 {[%clk 0:01:22.5]} 30. Qc3 {[%clk 0:01:50.1]} 30... Rca8 {[%clk
0:01:22.1]} 31. Qb3 {[%clk 0:01:39.4]} 31... b5 {[%clk 0:01:08.3]} 32. Qc2
{[%clk 0:01:33.9]} 32... Nc4 {[%clk 0:01:04.4]} 33. Bxc4 {[%clk 0:01:31.7]}
33... dxc4 {[%clk 0:01:04.2]} 34. Qe4 {[%clk 0:01:31.4]} 34... Qd5 {[%clk
0:01:00.4]} 35. Kf3 {[%clk 0:01:23.4]} 35... Rxa4 {[%clk 0:00:59.4]} 36. Raxa4
{[%clk 0:01:11.4]} 36... Rxa4 {[%clk 0:01:00.3]} 37. Qxd5 {[%clk 0:01:11.2]}
37... cxd5 {[%clk 0:00:46.6]} 38. Rxb5 {[%clk 0:01:12.1]} 38... c3 {[%clk
0:00:20.3]} 39. Rc5 {[%clk 0:01:11.9]} 39... Ra3 {[%clk 0:00:20.8]} 40. Rxd5
{[%clk 0:01:10.3]} 40... Kf6 {[%clk 0:00:20.3]} 41. Rc5 {[%clk 0:01:10.5]} 41...
Ke6 {[%clk 0:00:20.5]} 42. Ke4 {[%clk 0:01:09.1]} 42... Kd6 {[%clk 0:00:17]} 43.
f3 {[%clk 0:01:06]} 43... f5+ {[%clk 0:00:14.9]} 44. Kf4 {[%clk 0:01:02.2]}
44... Ke6 {[%clk 0:00:15.3]} 45. e4 {[%clk 0:00:57.6]} 45... fxe4 {[%clk
0:00:16.2]} 46. fxe4 {[%clk 0:00:57.6]} 46... Kd6 {[%clk 0:00:16.6]} 47. g4
{[%clk 0:00:51.4]} 47... hxg4 {[%clk 0:00:16.2]} 48. Kxg4 {[%clk 0:00:51.6]}
48... Ra4 {[%clk 0:00:16.6]} 49. Rxc3 {[%clk 0:00:50.4]} 49... Rxd4 {[%clk
0:00:16.5]} 50. Kf4 {[%clk 0:00:50.4]} 50... Rd1 {[%clk 0:00:16.3]} 51. Rg3
{[%clk 0:00:48.2]} 51... Rf1+ {[%clk 0:00:14.6]} 52. Kg5 {[%clk 0:00:41.5]}
52... Ke5 {[%clk 0:00:13.9]} 53. Kxg6 {[%clk 0:00:40.7]} 53... Kxe4 {[%clk
0:00:10.2]} 54. h5 {[%clk 0:00:40.9]} 54... Kf4 {[%clk 0:00:06.1]} 55. Rg2
{[%clk 0:00:37.6]} 55... Ra1 {[%clk 0:00:04.7]} 56. h6 {[%clk 0:00:37]} 56...
Ra6+ {[%clk 0:00:04.9]} 57. Kh7 {[%clk 0:00:34.7]} 57... Kf5 {[%clk 0:00:04.2]}
58. Kg7 {[%clk 0:00:29.4]} 58... Ra7+ {[%clk 0:00:04.3]} 59. Kh8 {[%clk
0:00:28.9]} 59... Kf6 {[%clk 0:00:04.7]} 60. Rg7 {[%clk 0:00:19.5]} 60... Ra8+
{[%clk 0:00:04.3]} 61. Rg8 {[%clk 0:00:19.9]} 61... Ra7 {[%clk 0:00:04.8]} 62.
h7 {[%clk 0:00:20.1]} 62... Rb7 {[%clk 0:00:05.4]} 63. Rf8+ {[%clk 0:00:20.3]}
63... Kg6 {[%clk 0:00:05.9]} 64. Rg8+ {[%clk 0:00:20.5]} 64... Kh6 {[%clk
0:00:05.9]} 65. Rc8 {[%clk 0:00:19.9]} 65... Rxh7+ {[%clk 0:00:05.7]} 66. Kg8
{[%clk 0:00:20.4]} 66... Rg7+ {[%clk 0:00:06.6]} 67. Kf8 {[%clk 0:00:20.6]}
67... Rg1 {[%clk 0:00:07.5]} 68. Rc6+ {[%clk 0:00:20.1]} 68... Kh7 {[%clk
0:00:08.1]} 69. Rc7+ {[%clk 0:00:20.4]} 69... Kh6 {[%clk 0:00:08.7]} 70. Rc6+
{[%clk 0:00:20.8]} 70... Kg5 {[%clk 0:00:09.3]} 71. Rc7 {[%clk 0:00:20.7]} 71...
Kf6 {[%clk 0:00:09.6]} 72. Rf7+ {[%clk 0:00:20.9]} 72... Ke6 {[%clk 0:00:10.2]}
73. Re7+ {[%clk 0:00:21.3]} 73... Kd6 {[%clk 0:00:10.8]} 74. Rg7 {[%clk
0:00:21.5]} 74... Rb1 {[%clk 0:00:11.3]} 75. Kg8 {[%clk 0:00:21.2]} 75... Ke6
{[%clk 0:00:11.6]} 76. Rg6+ {[%clk 0:00:20.9]} 76... Kf5 {[%clk 0:00:11.6]} 77.
Rc6 {[%clk 0:00:20.9]} 77... Rb7 {[%clk 0:00:11.4]} 78. Kf8 {[%clk 0:00:20.9]}
78... Ke5 {[%clk 0:00:11.9]} 79. Ke8 {[%clk 0:00:21.2]} 79... Kd5 {[%clk
0:00:12.4]} 80. Rh6 {[%clk 0:00:21.3]} 80... Rg7 {[%clk 0:00:12.5]} 81. Kf8
{[%clk 0:00:21]} 81... Ra7 {[%clk 0:00:13]} 82. Ke8 {[%clk 0:00:21.1]} 82...
Ra8+ {[%clk 0:00:13.9]} 83. Kd7 {[%clk 0:00:20.2]} 83... Ra7+ {[%clk 0:00:14.8]}
84. Kc8 {[%clk 0:00:20.3]} 84... Ra8+ {[%clk 0:00:15.2]} 85. Kb7 {[%clk
0:00:20.5]} 85... Rg8 {[%clk 0:00:15.8]} 86. Rh5+ {[%clk 0:00:20.6]} 86... Kd6
{[%clk 0:00:16.1]} 87. Rh6+ {[%clk 0:00:20.9]} 87... Kc5 {[%clk 0:00:15.8]} 88.
Rh5+ {[%clk 0:00:21]} 88... Kd6 {[%clk 0:00:16.5]} 89. Rh6+ {[%clk 0:00:21.3]}
89... Kc5 {[%clk 0:00:17.1]} 90. Rh5+ {[%clk 0:00:21.6]} 90... Kd6 {[%clk
0:00:17.8]} 1/2-1/2

[Event "*** Titled Tuesday Blitz"]
[Site "Chess.com"]
[Date "2021.04.27"]
[Round "2"]
[White "Grandmaster2B"]
[Black "attack2mateU"]
[Result "0-1"]
[WhiteElo "2506"]
[BlackElo "2721"]
[TimeControl "180+1"]
[EndTime "10:13:28 PDT"]
[Termination "attack2mateU won by resignation"]

1. e4 {[%clk 0:03:00.9]} 1... c5 {[%clk 0:02:59.8]} 2. Nf3 {[%clk 0:03:00.4]}
2... d6 {[%clk 0:02:59.6]} 3. d4 {[%clk 0:03:00.7]} 3... cxd4 {[%clk 0:03:00.5]}
4. Nxd4 {[%clk 0:03:01.6]} 4... Nf6 {[%clk 0:03:00.4]} 5. Nc3 {[%clk 0:03:02]}
5... a6 {[%clk 0:03:00.6]} 6. f3 {[%clk 0:03:00.9]} 6... e5 {[%clk 0:02:55.8]}
7. Nb3 {[%clk 0:03:01.1]} 7... Be7 {[%clk 0:02:55.8]} 8. Be3 {[%clk 0:03:01.6]}
8... Be6 {[%clk 0:02:53.3]} 9. Qd2 {[%clk 0:03:01.9]} 9... h5 {[%clk 0:02:51.8]}
10. Be2 {[%clk 0:02:58.8]} 10... Nbd7 {[%clk 0:02:47]} 11. O-O {[%clk
0:02:59.1]} 11... Qc7 {[%clk 0:02:38.3]} 12. Rac1 {[%clk 0:02:58.5]} 12... b5
{[%clk 0:02:30.4]} 13. Rfd1 {[%clk 0:02:50]} 13... Nb6 {[%clk 0:02:26.9]} 14.
Bxb6 {[%clk 0:02:29]} 14... Qxb6+ {[%clk 0:02:27.8]} 15. Kh1 {[%clk 0:02:29.8]}
15... h4 {[%clk 0:02:22]} 16. Nd5 {[%clk 0:02:19.6]} 16... Bxd5 {[%clk
0:02:20.9]} 17. exd5 {[%clk 0:02:19.9]} 17... Nh5 {[%clk 0:02:20.7]} 18. Bf1
{[%clk 0:02:07.4]} 18... Ng3+ {[%clk 0:02:19.6]} 0-1

[Event "*** Titled Tuesday Blitz"]
[Site "Chess.com"]
[Date "2021.04.27"]
[Round "2"]
[White "PolandHussars"]
[Black "nicoderboss24"]
[Result "1-0"]
[WhiteElo "2623"]
[BlackElo "2280"]
[TimeControl "180+1"]
[EndTime "10:14:17 PDT"]
[Termination "PolandHussars won by resignation"]

1. e4 {[%clk 0:03:00.9]} 1... c5 {[%clk 0:02:59.6]} 2. Ne2 {[%clk 0:02:59.2]}
2... Nc6 {[%clk 0:02:59.9]} 3. g3 {[%clk 0:02:59.5]} 3... g6 {[%clk 0:02:59.9]}
4. Bg2 {[%clk 0:03:00]} 4... Bg7 {[%clk 0:03:00.4]} 5. c3 {[%clk 0:03:00.6]}
5... e5 {[%clk 0:02:54.7]} 6. d3 {[%clk 0:02:59.7]} 6... Nge7 {[%clk 0:02:54.6]}
7. Be3 {[%clk 0:03:00.2]} 7... d6 {[%clk 0:02:54]} 8. Nd2 {[%clk 0:03:00.4]}
8... O-O {[%clk 0:02:54.5]} 9. f4 {[%clk 0:03:00.5]} 9... f5 {[%clk 0:02:52.9]}
10. O-O {[%clk 0:03:00.7]} 10... h6 {[%clk 0:02:51.5]} 11. Nf3 {[%clk
0:02:57.4]} 11... Kh7 {[%clk 0:02:50.5]} 12. Qd2 {[%clk 0:02:57.1]} 12... exf4
{[%clk 0:02:44.8]} 13. Nxf4 {[%clk 0:02:54.9]} 13... Rb8 {[%clk 0:02:17.6]} 14.
exf5 {[%clk 0:02:48.6]} 14... Nxf5 {[%clk 0:02:15]} 15. Bf2 {[%clk 0:02:48.8]}
15... d5 {[%clk 0:02:04]} 16. Nxd5 {[%clk 0:02:45.8]} 16... b6 {[%clk
0:01:48.1]} 17. Rae1 {[%clk 0:02:41.1]} 17... Qd6 {[%clk 0:01:39.9]} 18. g4
{[%clk 0:02:34.7]} 18... Nfe7 {[%clk 0:01:22.3]} 19. Nxe7 {[%clk 0:02:34.3]}
19... Nxe7 {[%clk 0:01:23.2]} 20. Bg3 {[%clk 0:02:34.3]} 20... Qd7 {[%clk
0:01:16.7]} 21. Bxb8 {[%clk 0:02:32.9]} 1-0

[Event "*** Titled Tuesday Blitz"]
[Site "Chess.com"]
[Date "2021.04.27"]
[Round "2"]
[White "Nikolaj_6"]
[Black "volkanyirik"]
[Result "1-0"]
[WhiteElo "2658"]
[BlackElo "2415"]
[TimeControl "180+1"]
[EndTime "10:14:32 PDT"]
[Termination "Nikolaj_6 won by resignation"]

1. e4 {[%clk 0:03:00.9]} 1... g6 {[%clk 0:02:59.3]} 2. d4 {[%clk 0:03:00.5]}
2... Bg7 {[%clk 0:03:00.2]} 3. Nf3 {[%clk 0:03:00.8]} 3... c5 {[%clk 0:03:00.5]}
4. dxc5 {[%clk 0:02:59.9]} 4... Nc6 {[%clk 0:03:00.4]} 5. c3 {[%clk 0:02:58.6]}
5... Nf6 {[%clk 0:03:00.8]} 6. Nbd2 {[%clk 0:02:51.8]} 6... O-O {[%clk
0:03:00.7]} 7. h3 {[%clk 0:02:48.5]} 7... b6 {[%clk 0:03:00.9]} 8. cxb6 {[%clk
0:02:43.3]} 8... Qxb6 {[%clk 0:03:01.8]} 9. Bd3 {[%clk 0:02:41.5]} 9... d5
{[%clk 0:03:00.6]} 10. O-O {[%clk 0:02:38.9]} 10... Bb7 {[%clk 0:02:55.2]} 11.
Qe2 {[%clk 0:02:29.9]} 11... e5 {[%clk 0:02:42.4]} 12. exd5 {[%clk 0:02:17.6]}
12... Nxd5 {[%clk 0:02:41.7]} 13. Nc4 {[%clk 0:02:17.6]} 13... Qc7 {[%clk
0:02:42]} 14. Re1 {[%clk 0:02:11.5]} 14... Rfe8 {[%clk 0:02:36.1]} 15. Ng5
{[%clk 0:01:58.5]} 15... f5 {[%clk 0:02:32.8]} 16. Ne3 {[%clk 0:01:40.4]} 16...
Nf4 {[%clk 0:02:30.5]} 17. Bc4+ {[%clk 0:01:40.4]} 17... Kf8 {[%clk 0:02:15]}
18. Nxh7+ {[%clk 0:01:32]} 18... Ke7 {[%clk 0:02:14.3]} 19. Nd5+ {[%clk
0:01:32.2]} 19... Nxd5 {[%clk 0:02:08.6]} 20. Bxd5 {[%clk 0:01:33.1]} 20... Rad8
{[%clk 0:01:59.9]} 21. Bg5+ {[%clk 0:01:31.4]} 1-0